bitfinex-derivatives/quotes_ETHF0:USTF0_20241104
["timestamp","ask_amount","ask_price","bid_price","bid_amount"]
[1730734742318,40.8,2438.9,2438.8,0.41022]
[1730734742511,1.0789,2439.0,2438.9,0.4102]
[1730734742812,3.2078,2439.2,2439.1,0.41017]
[1730734743003,3.2078,2439.2,2438.8,4.23333]
[1730734743004,40.8,2439.2,2438.8,4.23333]
[1730734743205,0.98052,2439.5,2439.4,0.41012]
[1730734743608,0.5704,2439.5,2439.1,1.02542]
[1730734743814,0.41013,2439.4,2439.3,0.41012]
[1730734744409,41.3561,2439.6,2439.1,1.02542]
[1730734744610,0.41011,2439.5,2439.4,0.4101]
[1730734744805,0.5561,2439.6,2439.5,0.4101]
[1730734745613,44.99215,2439.8,2439.7,0.41007]
[1730734745823,45.55905,2439.8,2439.7,0.41007]
[1730734746313,45.149,2439.8,2439.7,0.41007]
[1730734746516,45.55905,2439.8,2439.4,1.57259]
[1730734746714,45.149,2439.8,2439.4,0.5473]
[1730734746912,0.41008,2439.7,2439.5,0.41008]
[1730734747113,3.20048792,2439.7,2439.2,3.2078]
[1730734747416,0.41012,2439.4,2439.2,3.2078]
[1730734747610,1.54933,2439.3,2439.2,3.61795]
[1730734747807,1.54933,2439.3,2439.2,3.2078]
[1730734748612,0.4102,2438.9,2438.8,1.6010615]
[1730734748918,0.41021,2438.9,2438.8,0.41021]
[1730734749217,3.20048792,2439.1,2438.7,3.2078]
[1730734749411,0.5677,2438.8,2438.7,3.61803]
[1730734749611,41.3677,2438.8,2438.7,3.61803]
[1730734749820,41.77792,2438.8,2438.7,3.61803]
[1730734750420,45.87872,2438.8,2438.7,3.2078]
[1730734750632,0.41027,2438.5,2438.4,2.0113315]
[1730734750817,3.61074792,2438.6,2438.5,0.41027]
[1730734751122,0.5848,2438.7,2438.3,2.6268115]
[1730734751317,6.99308792,2438.7,2438.2,1.6010615]
[1730734751619,0.41026,2438.6,2438.5,0.41026]
[1730734752514,3.7926,2438.7,2438.6,0.41025]
[1730734752715,0.99503,2438.7,2438.6,0.41025]
[1730734753622,0.5848,2438.7,2438.6,0.41025]
[1730734755824,0.5677,2438.8,2438.7,0.41023]
[1730734756029,3.7883,2439.0,2438.9,0.4102]
[1730734756215,3.20048792,2439.1,2438.7,1.02558]
[1730734756422,4.30568792,2439.3,2439.2,0.41015]
[1730734756725,0.41016,2439.2,2439.1,0.41016]
[1730734757418,0.4102,2438.9,2438.8,0.41021]
[1730734757618,0.4102,2438.9,2438.5,2.1816615]
[1730734757619,3.2078,2438.9,2438.5,2.1816615]
[1730734757822,3.61071792,2438.7,2438.6,0.41025]
[1730734758324,4.14281792,2438.7,2438.6,0.41025]
[1730734759728,3.73258792,2438.7,2438.3,2.6267815]
[1730734760025,0.41026,2438.6,2438.5,0.41025]
[1730734760622,0.41028,2438.5,2438.4,0.41027]
[1730734760823,0.41026,2438.6,2438.5,0.41025]
[1730734761222,0.5321,2438.7,2438.6,0.41025]
[1730734761426,0.94233,2438.7,2438.6,0.41025]
[1730734762518,0.41027,2438.6,2438.5,0.41026]
[1730734763629,0.5321,2438.7,2438.6,0.41025]
[1730734763839,0.94233,2438.7,2438.6,0.41025]
[1730734764832,0.5321,2438.7,2438.6,0.41025]
[1730734765032,0.94233,2438.7,2438.6,0.41025]
[1730734765336,0.5321,2438.7,2438.6,0.41025]
[1730734766635,0.5631,2438.8,2438.7,0.41023]
[1730734767132,0.97332,2438.8,2438.7,0.41023]
[1730734767631,0.41026,2438.7,2438.6,0.41024]
[1730734768336,0.41027,2438.6,2438.5,0.41026]
[1730734769538,0.5631,2438.8,2438.3,1.02574]
[1730734769830,0.5631,2438.8,2438.7,0.41023]
[1730734769831,0.97334,2438.8,2438.7,0.41023]
[1730734772332,0.5631,2438.8,2438.7,0.41023]
[1730734772633,0.4894,2439.0,2438.9,0.4102]
[1730734772838,3.6972,2439.0,2438.9,0.4102]
[1730734773137,0.41023,2438.8,2438.7,0.41021]
[1730734773532,3.6972,2439.0,2438.4,1.07105653]
[1730734773840,4.10739,2439.0,2438.9,0.4102]
[1730734774738,4.10738,2439.0,2438.9,0.4102]
[1730734775038,0.41022,2438.9,2438.8,0.4102]
[1730734775535,4.1074,2439.0,2438.9,0.4102]
[1730734775838,0.41022,2438.9,2438.8,0.41021]
[1730734776237,3.6972,2439.0,2438.5,1.07105653]
[1730734776442,0.92773,2438.8,2438.7,0.41023]
[1730734777440,0.41027,2438.6,2438.4,1.07105653]
[1730734777646,3.71048792,2438.5,2438.1,1.07105653]
[1730734777844,6.40828792,2438.2,2437.9,1.07105653]
[1730734778041,0.41037,2438.0,2437.9,0.41036]
[1730734778445,1.38567,2438.0,2437.9,0.41036]
[1730734778642,42.18567,2438.0,2437.9,0.41036]
[1730734778942,41.7753,2438.0,2437.9,0.41036]
[1730734779140,0.41038,2437.9,2437.8,0.41037]
[1730734779644,41.7753,2438.0,2437.9,0.41037]
[1730734779945,40.8,2438.0,2437.9,0.41037]
[1730734780837,40.8,2438.0,2437.8,0.41037]
[1730734781049,4.18708792,2437.9,2437.7,1.07105653]
[1730734781240,0.9866,2437.9,2437.8,0.41039]
[1730734781442,40.8,2438.0,2437.9,0.41037]
[1730734781937,40.8,2438.0,2437.9,1.48142653]
[1730734782148,3.2078,2438.2,2438.1,0.41034]
[1730734782633,3.61812,2438.2,2438.1,0.41034]
[1730734782836,3.61813,2438.2,2438.1,0.41034]
[1730734783243,44.41813,2438.2,2438.1,0.41034]
[1730734784331,44.41813,2438.2,2437.9,1.07159033]
[1730734784332,44.00048792,2438.2,2437.9,1.07159033]
[1730734784536,3.61083792,2438.0,2437.9,1.07159033]
[1730734784733,3.20048792,2438.0,2437.6,4.27939033]
[1730734784938,3.20048792,2438.0,2437.7,0.41039]
[1730734784939,0.4104,2437.8,2437.7,0.41039]
[1730734785343,0.8813,2437.8,2437.7,0.41039]
[1730734785547,0.4709,2437.8,2437.7,0.41039]
[1730734785742,0.92638,2437.9,2437.8,0.41039]
[1730734785944,0.516,2437.9,2437.8,0.41039]
[1730734786540,0.92637,2437.9,2437.8,0.41039]
[1730734786946,0.516,2437.9,2437.8,0.41039]
[1730734789732,0.41037,2437.9,2437.8,1.48198033]
[1730734789937,0.4709,2438.0,2437.9,0.41037]
[1730734790133,0.88125,2438.0,2437.9,0.41037]
[1730734793143,0.41037,2437.9,2437.8,0.41038]
[1730734793346,0.41037,2437.9,2437.8,1.48197033]
[1730734793853,0.41037,2437.9,2437.8,0.41038]
[1730734794544,0.41039,2437.8,2437.7,1.07250793]
[1730734794751,3.20048792,2437.8,2437.7,1.07250793]
[1730734794936,3.61087792,2437.8,2437.7,1.48290793]
[1730734795143,0.41039,2437.8,2437.7,0.4104]
[1730734795341,0.41039,2437.8,2437.7,1.48290793]
[1730734796048,0.41039,2437.8,2437.7,2.01006064]
[1730734796552,3.67138792,2438.0,2437.7,1.59966064]
[1730734796844,4.08175792,2438.0,2437.9,0.41037]
[1730734797655,0.88127,2438.0,2437.9,0.41037]
[1730734798052,0.4709,2438.0,2437.8,1.07250793]
[1730734798251,3.61085792,2437.9,2437.8,0.41038]
[1730734798850,3.20048792,2437.9,2437.8,0.41038]
[1730734799047,0.4709,2438.0,2437.8,4.1016]
[1730734799254,0.88304,2438.1,2438.0,0.41035]
[1730734799748,4.5743,2438.1,2437.9,1.07250793]
[1730734799952,0.41049,2437.2,2437.0,0.41051]
[1730734800255,47.20828792,2437.1,2436.5,3.2078]
[1730734800551,44.0078,2437.1,2437.0,0.41052]
[1730734800755,40.8,2437.1,2437.0,0.93765113]
[1730734800950,44.00048792,2437.1,2437.0,0.41052]
[1730734801254,44.41098792,2437.1,2437.0,0.52713692]
[1730734801447,44.41099792,2437.1,2437.0,0.41052]
[1730734801646,3.20048792,2437.3,2436.8,3.7198]
[1730734801862,3.20048792,2437.3,2437.2,0.41049]
[1730734802049,44.41095792,2437.3,2437.2,0.41049]
[1730734802245,48.10368792,2437.3,2437.0,0.5125]
[1730734802449,0.41049,2437.2,2437.1,0.41049]
[1730734802650,44.00048792,2437.3,2437.2,0.41049]
[1730734803350,40.8,2437.3,2437.2,4.51369]
[1730734803549,3.20048792,2437.5,2437.2,4.1032]
[1730734803749,3.20048792,2437.5,2437.3,0.5136]
[1730734803955,3.61093792,2437.5,2437.4,0.41045]
[1730734804157,3.20048792,2437.5,2437.4,0.41045]
[1730734804656,3.61092792,2437.5,2437.4,0.41045]
[1730734805058,3.2078,2437.6,2437.4,4.1024]
[1730734805255,3.61823,2437.6,2437.5,0.41044]
[1730734805754,0.41045,2437.5,2437.4,0.41045]
[1730734805954,0.41047,2437.4,2437.3,0.41046]
[1730734806157,0.41047,2437.3,2437.2,0.5125]
[1730734806360,0.41046,2437.4,2437.2,0.92299]
[1730734806548,3.61093792,2437.5,2437.4,0.41045]
[1730734806750,3.20048792,2437.5,2437.4,0.41045]
[1730734806948,3.20048792,2437.5,2437.4,4.51285]
[1730734807154,3.2078,2437.6,2437.4,4.1024]
[1730734807448,0.41036,2438.0,2437.9,0.41036]
[1730734807859,3.20048792,2438.1,2438.0,0.41035]
[1730734808068,6.81857792,2438.4,2438.3,0.4103]
[1730734808364,3.20048792,2438.4,2438.3,0.4103]
[1730734808569,3.20048792,2438.6,2438.5,0.41027]
[1730734809168,3.61073792,2438.6,2438.5,0.41027]
[1730734809469,3.20048792,2438.6,2438.4,0.89418]
[1730734809657,3.61074792,2438.6,2438.4,0.89418]
[1730734810064,3.61074792,2438.6,2438.5,0.41027]
[1730734810363,3.61073792,2438.6,2438.5,0.41027]
[1730734810558,3.20048792,2438.6,2438.5,0.41027]
[1730734810758,3.61073792,2438.6,2438.5,0.41027]
[1730734810953,3.20048792,2438.6,2438.5,0.41027]
[1730734811157,41.21024,2438.7,2438.6,0.41025]
[1730734811364,40.8,2438.7,2438.6,0.41025]
[1730734812061,0.41026,2438.6,2438.5,0.41026]
[1730734812258,40.8,2438.7,2438.6,0.41025]
[1730734812460,3.20048792,2438.8,2438.7,0.41023]
[1730734812663,0.02828,2438.9,2438.8,0.41022]
[1730734813168,40.82828,2438.9,2438.8,0.41022]
[1730734813563,44.92828,2438.9,2438.6,0.5178]
[1730734813764,3.61071792,2438.7,2438.5,0.41026]
[1730734813960,0.41025,2438.6,2438.5,0.41026]
[1730734814160,10.50908792,2438.7,2438.3,0.5178]
[1730734814361,0.41034,2438.1,2438.0,0.5093]
[1730734814673,9e-05,2437.8,2437.7,0.5195]
[1730734814967,3.20048792,2437.8,2437.3,1.03586835]
[1730734815166,3.20048792,2437.8,2437.3,0.5093]
[1730734815365,0.41042,2437.6,2437.5,0.41043]
[1730734815769,41.21042,2437.6,2437.5,0.41043]
[1730734816168,40.8,2437.6,2437.3,0.5093]
[1730734816377,40.8,2437.6,2437.5,0.41044]
[1730734816571,3.61816,2438.0,2437.9,0.41037]
[1730734816764,3.2078,2438.0,2437.9,0.41037]
[1730734816969,44.0078,2438.0,2437.9,0.41037]
[1730734817769,44.41815,2438.0,2437.9,0.41037]
[1730734818166,3.2078,2438.0,2437.9,0.41037]
[1730734818770,3.61815,2438.0,2437.9,0.41037]
[1730734818977,40.8,2438.2,2437.7,0.5195]
[1730734819271,44.74121607,2438.2,2437.7,0.5195]
[1730734819471,0.41039,2437.8,2437.7,0.4104]
[1730734819882,0.41035,2438.1,2437.8,0.41039]
[1730734820066,44.74121607,2438.2,2437.6,1.02606]
[1730734820265,41.21032,2438.2,2438.1,0.41034]
[1730734820881,41.21032,2438.2,2437.7,3.2078]
[1730734820882,0.41035,2438.1,2438.0,0.41035]
[1730734821067,40.8,2438.2,2437.9,0.4867]
[1730734821268,41.21033,2438.2,2438.1,0.41034]
[1730734821478,0.41034,2438.1,2438.0,0.41034]
[1730734821674,0.41035,2438.0,2437.9,0.89706]
[1730734822069,0.41035,2438.0,2437.9,1.42405065]
[1730734822477,0.41034,2438.1,2438.0,0.41034]
[1730734822671,0.41035,2438.0,2437.9,0.89706]
[1730734822871,40.8,2438.2,2437.9,1.0138159]
[1730734823076,40.8,2438.2,2438.1,0.41034]
[1730734823571,3.2078,2438.3,2438.2,0.41032]
[1730734823778,0.55028,2438.9,2438.3,1.02575]
[1730734824079,41.21022,2438.8,2438.7,0.41022]
[1730734824268,0.41025,2438.7,2438.6,0.41025]
[1730734824465,40.8,2438.8,2438.7,0.41023]
[1730734824668,0.41024,2438.7,2438.6,0.41023]
[1730734824868,40.8,2438.8,2438.5,0.5193]
[1730734825075,40.8,2438.8,2438.7,0.41023]
[1730734826691,0.41023,2438.7,2438.6,0.5137]
[1730734826986,0.4103,2438.4,2438.3,0.4103]
[1730734827170,52.04981607,2438.8,2438.2,0.4882]
[1730734827171,48.97457607,2438.8,2438.2,0.4882]
[1730734827374,0.41028,2438.5,2438.4,0.41028]
[1730734827574,48.97457607,2438.8,2438.2,0.4882]
[1730734827774,0.4103,2438.3,2438.2,0.89852]
[1730734827974,3.2078,2438.5,2438.0,0.4806]
[1730734828188,0.4103,2438.4,2438.3,0.41029]
[1730734828482,0.41028,2438.5,2438.4,0.41028]
[1730734828684,47.94901607,2438.8,2438.1,1.51404]
[1730734828884,0.41026,2438.6,2438.5,0.41026]
[1730734829183,44.0078,2438.8,2438.2,1.02579]
[1730734829386,44.0078,2438.8,2438.3,1.02575]
[1730734829584,44.0078,2438.8,2438.2,4.23359]
[1730734829775,0.41027,2438.6,2438.5,0.41026]
[1730734830177,0.41025,2438.6,2438.3,0.4103]
[1730734830383,0.41025,2438.6,2438.5,0.41027]
[1730734831081,0.41028,2438.5,2438.4,0.41027]
[1730734831397,0.41025,2438.7,2438.6,0.41024]
[1730734831884,44.41803,2438.8,2438.7,0.41023]
[1730734832179,0.41026,2438.6,2438.5,0.41026]
[1730734832777,0.41025,2438.7,2438.6,0.41024]
[1730734833075,44.41803,2438.8,2438.7,0.41023]
[1730734833281,0.41025,2438.7,2438.6,0.41024]
[1730734834384,44.0078,2438.8,2437.9,7.39440866]
[1730734834684,0.41026,2438.6,2438.5,0.41025]
[1730734835574,0.41025,2438.7,2438.6,0.41024]
[1730734835771,44.0078,2438.8,2438.3,0.5297]
[1730734835976,1.02572,2438.4,2437.8,1.53557]
[1730734836171,0.41034,2438.1,2438.0,0.41034]
[1730734836587,0.5254,2438.3,2438.2,0.41032]
[1730734836588,0.93571,2438.3,2438.2,0.41032]
[1730734836887,7.14901607,2438.5,2438.4,0.41028]
[1730734836888,0.41029,2438.5,2438.4,0.41028]
[1730734837075,0.41029,2438.5,2438.0,1.02587]
[1730734837076,0.41033,2438.2,2438.1,0.41032]
[1730734837275,0.41034,2438.1,2438.0,0.5088]
[1730734837878,0.5254,2438.3,2438.0,0.5088]
[1730734838087,0.41034,2438.1,2437.8,4.61087]
[1730734838284,0.41032,2438.2,2438.0,0.41035]
[1730734838586,0.41031,2438.3,2438.1,0.41034]
[1730734838883,3.2078,2438.5,2437.8,4.2005]
[1730734839083,3.2078,2438.5,2438.0,1.43622]
[1730734839286,0.41026,2438.6,2438.3,0.41029]
[1730734839585,0.41026,2438.6,2438.4,1.44228]
[1730734839980,44.0016606,2438.8,2438.4,1.032]
[1730734840186,0.41027,2438.5,2438.4,1.032]
[1730734841189,0.41027,2438.5,2438.4,1.44228]
[1730734841386,0.41026,2438.6,2438.4,1.44228]
[1730734841587,0.41027,2438.5,2438.4,1.032]
[1730734842287,0.41026,2438.6,2438.5,0.41027]
[1730734842493,0.41027,2438.5,2438.4,1.44228]
[1730734842788,45.0272106,2438.8,2438.4,1.44228]
[1730734842789,0.41026,2438.6,2438.4,1.44228]
[1730734842990,0.41026,2438.6,2438.5,0.41027]
[1730734843390,0.41027,2438.5,2438.4,1.44228]
[1730734844180,45.0272106,2438.8,2438.4,1.44228]
[1730734844181,44.0016606,2438.8,2438.4,1.44228]
[1730734844385,0.41026,2438.6,2438.5,0.41026]
[1730734844691,0.41024,2438.7,2438.6,0.41025]
[1730734845185,0.41024,2438.7,2438.4,1.032]
[1730734845186,0.41027,2438.5,2438.4,1.032]
[1730734845393,0.41027,2438.5,2438.1,3.39306224]
[1730734845394,0.41031,2438.3,2438.2,0.41032]
[1730734845687,0.41031,2438.3,2438.2,0.5093]
[1730734845988,0.41031,2438.3,2437.8,5.87436199]
[1730734845989,0.41039,2437.8,2437.7,2.71375005]
[1730734846189,6.8198506,2437.8,2437.7,1.59775066]
[1730734846382,0.41049,2437.3,2437.0,0.5093]
[1730734846688,3.2078,2437.3,2437.0,0.5093]
[1730734846887,0.4105,2437.1,2437.0,0.5093]
[1730734847092,0.41052,2437.0,2436.9,0.5303]
[1730734847386,0.32082,2437.0,2436.9,0.5303]
[1730734847586,3.1119806,2437.2,2436.9,0.5303]
[1730734847779,0.4106,2436.6,2436.4,0.91991]
[1730734847984,0.41054,2436.9,2436.4,0.5093]
[1730734848190,0.41055,2436.9,2436.7,0.41056]
[1730734848385,3.2078,2437.0,2436.6,0.41058]
[1730734848386,0.41056,2436.8,2436.6,0.41058]
[1730734848584,0.41056,2436.8,2436.4,3.7171]
[1730734848585,0.41054,2436.9,2436.7,0.41056]
[1730734848896,0.41055,2436.9,2436.7,0.41057]
[1730734849299,3.2078,2437.0,2436.4,3.7171]
[1730734849586,0.41053,2437.0,2436.8,0.41055]
[1730734849791,0.41052,2437.1,2436.4,3.7171]
[1730734849989,3.2078,2437.3,2436.5,1.02652]
[1730734850290,0.41053,2437.0,2436.5,1.02652]
[1730734850483,3.2078,2437.3,2436.5,1.02652]
[1730734850687,0.41053,2437.0,2436.8,0.41054]
[1730734851290,0.41053,2437.0,2436.5,1.02652]
[1730734851596,0.41053,2437.0,2436.9,0.41054]
[1730734851994,0.41052,2437.1,2436.9,0.41054]
[1730734852296,0.41052,2437.0,2436.9,0.41054]
[1730734852591,3.2078,2437.3,2436.9,0.41054]
[1730734852592,0.41051,2437.1,2436.9,0.41054]
[1730734852892,3.2078,2437.4,2436.7,3.2078]
[1730734853089,3.61826,2437.4,2437.2,0.41047]
[1730734853283,3.2016606,2437.6,2436.9,3.2078]
[1730734853489,0.41049,2437.2,2437.0,0.41051]
[1730734853781,0.41049,2437.2,2437.1,0.4105]
[1730734854085,3.2016606,2437.6,2436.9,3.2078]
[1730734854285,6.4094606,2437.4,2437.0,0.41051]
[1730734854488,0.4105,2437.2,2437.0,0.41051]
[1730734854690,6.4094606,2437.4,2436.8,0.4859]
[1730734854887,7.4356206,2437.4,2436.8,0.89644]
[1730734855090,0.41053,2437.0,2436.8,0.89644]
[1730734855494,6.4094606,2437.4,2436.8,0.4859]
[1730734855697,0.41051,2437.1,2437.0,0.41052]
[1730734856301,3.2016606,2437.2,2436.4,4.92923152]
[1730734856494,3.2016606,2437.2,2436.5,0.5225]
[1730734856695,0.41055,2436.8,2436.7,0.41056]
[1730734856888,0.41055,2436.8,2436.5,0.5225]
[1730734856889,0.32112,2437.0,2436.8,0.41054]
[1730734857191,3.2016606,2437.2,2436.8,0.41054]
[1730734857192,0.41049,2437.2,2437.1,0.4105]
[1730734857496,0.41051,2437.1,2437.0,0.41051]
[1730734857694,0.4105,2437.2,2437.1,0.4105]
[1730734857897,0.41049,2437.2,2437.1,0.4105]
[1730734858096,0.41049,2437.2,2437.0,0.4105]
[1730734858292,0.41048,2437.3,2437.1,0.4105]
[1730734858689,6.4094606,2437.4,2437.1,0.4105]
[1730734858898,0.41049,2437.2,2437.1,0.4105]
[1730734859502,6.4094606,2437.4,2436.8,3.2078]
[1730734859700,6.4094606,2437.4,2436.8,4.23418]
[1730734859894,0.41047,2437.3,2437.1,0.41049]
[1730734860092,6.4094606,2437.4,2437.1,0.41049]
[1730734860294,0.41052,2437.0,2436.9,0.5143]
[1730734860596,3.2016606,2437.0,2436.5,3.7303]
[1730734860795,0.41054,2436.9,2436.8,0.41054]
[1730734860991,3.2078,2437.1,2436.5,3.7303]
[1730734861192,0.41059,2436.6,2436.5,3.7303]
[1730734861403,0.41059,2436.6,2436.5,0.9331]
[1730734861598,2.9772606,2436.7,2436.5,0.5225]
[1730734861795,40.8,2436.6,2436.5,0.93309]
[1730734864196,41.21059,2436.6,2436.5,0.93309]
[1730734864402,41.21059,2436.6,2436.5,0.57874342]
[1730734864699,41.21059,2436.6,2436.5,0.05624342]
[1730734864700,45.31459,2436.6,2436.5,0.05624342]
[1730734864904,45.31459,2436.6,2435.7,3.7411]
[1730734864905,1.02658,2436.4,2435.7,3.7411]
[1730734865096,3.2078,2436.3,2435.8,1.02679]
[1730734865293,40.8,2436.6,2436.1,3.2078]
[1730734865502,0.41061,2436.5,2436.4,0.41062]
[1730734865899,41.2106,2436.6,2436.5,0.4106]
[1730734866100,41.2106,2436.6,2436.1,4.23447]
[1730734866101,0.41061,2436.5,2436.4,0.41061]
[1730734866300,41.2106,2436.6,2436.5,0.4106]
[1730734866501,0.41062,2436.4,2436.3,0.41064]
[1730734866698,40.8,2436.6,2436.4,0.41061]
[1730734866699,0.41061,2436.5,2436.4,0.41061]
[1730734867000,40.8,2436.6,2436.5,0.4106]
[1730734867202,40.8,2436.6,2436.4,0.41062]
[1730734867395,0.41062,2436.5,2436.4,0.41062]
[1730734867702,40.8,2436.6,2436.5,0.4106]
[1730734867703,0.41059,2436.6,2436.5,0.4106]
[1730734868099,44.0078,2436.7,2436.6,0.41059]
[1730734868300,3.2078,2436.7,2436.3,0.509]
[1730734868501,3.2016606,2436.9,2436.4,1.52585]
[1730734868701,0.41056,2436.8,2436.7,0.41056]
[1730734869202,3.6122106,2436.9,2436.8,0.41055]
[1730734869406,3.6122106,2436.9,2436.4,1.52585]
[1730734869407,3.2016606,2436.9,2436.4,1.52585]
[1730734869600,3.2016606,2436.9,2436.8,0.41055]
[1730734869997,0.41055,2436.8,2436.6,0.41059]
[1730734870196,0.41058,2436.7,2436.6,0.41058]
[1730734870901,3.2078,2436.8,2436.7,0.41057]
[1730734871207,3.2078,2436.8,2436.4,0.4993]
[1730734871208,0.41058,2436.7,2436.6,0.41058]
[1730734871604,3.61836,2436.8,2436.7,0.41057]
[1730734871911,3.2078,2436.8,2436.7,0.41057]
[1730734872608,3.61835,2436.8,2436.7,0.41057]
[1730734872810,3.61835,2436.8,2436.6,0.41058]
[1730734872811,0.41058,2436.7,2436.6,0.41058]
[1730734873205,3.2078,2436.8,2436.7,0.41057]
[1730734873510,3.6122106,2436.9,2436.8,0.41055]
[1730734873715,44.0078,2437.1,2436.9,0.41053]
[1730734873716,0.41054,2437.0,2436.9,0.41053]
[1730734873906,47.2094606,2437.1,2436.6,1.02647]
[1730734874213,44.0078,2437.1,2437.0,0.41052]
[1730734874400,3.6183,2437.1,2437.0,0.41052]
[1730734874813,44.0078,2437.1,2437.0,0.41052]
[1730734875916,44.0078,2437.1,2437.0,0.93422]
[1730734876819,44.4183,2437.1,2437.0,0.93422]
[1730734877217,44.0078,2437.1,2437.0,0.93422]
[1730734877615,0.41054,2436.9,2436.8,0.41055]
[1730734877820,0.41055,2436.8,2436.7,0.93426]
[1730734878014,0.41055,2436.8,2436.7,0.5237]
[1730734878721,0.41055,2436.8,2436.7,0.93427]
[1730734879728,0.41054,2437.0,2436.9,0.41052]
[1730734880519,44.0078,2437.1,2436.7,0.5237]
[1730734880711,44.41832,2437.1,2437.0,0.41052]
[1730734880917,0.41055,2436.9,2436.8,0.41054]
[1730734882022,0.41055,2436.8,2436.7,0.5237]
[1730734882322,3.61835,2436.8,2436.7,0.5237]
[1730734882714,0.41059,2436.6,2436.5,0.9407]
[1730734882919,0.41059,2436.6,2436.5,0.5301]
[1730734883223,0.41061,2436.6,2436.5,0.41059]
[1730734883720,0.41062,2436.4,2436.3,0.93623]
[1730734883909,3.2016606,2436.7,2436.3,0.5256]
[1730734884110,3.2016606,2436.7,2436.4,0.41061]
[1730734884111,0.41062,2436.5,2436.4,0.41061]
[1730734884415,4.2281106,2436.7,2436.3,0.93623]
[1730734884416,0.41062,2436.4,2436.3,0.93623]
[1730734884617,0.41062,2436.4,2436.3,0.5256]
[1730734884921,0.41062,2436.4,2436.3,0.93624]
[1730734886017,0.41062,2436.4,2436.3,0.5256]
[1730734886223,0.41066,2436.2,2436.1,3.61847]
[1730734886921,0.38266,2436.2,2436.1,0.41067]
[1730734887315,0.41069,2436.1,2436.0,0.41068]
[1730734887822,1.02657,2436.4,2436.1,0.41067]
[1730734887823,3.61847,2436.2,2436.1,0.41067]
[1730734888020,0.41067,2436.2,2436.1,0.41067]
[1730734888215,0.41067,2436.2,2435.9,0.5163]
[1730734888216,0.41069,2436.1,2436.0,0.41067]
[1730734888417,3.2078,2436.3,2435.9,0.5163]
[1730734888614,0.41066,2436.3,2436.2,0.41064]
[1730734888926,1.0093,2436.5,2435.9,2.1200436]
[1730734889116,0.41066,2436.3,2436.2,0.41065]
[1730734890523,3.61842,2436.5,2436.4,0.41062]
[1730734891020,0.41065,2436.3,2436.2,0.41065]
[1730734891325,3.61842,2436.5,2436.3,0.41063]
[1730734891326,0.41064,2436.4,2436.3,0.41063]
[1730734891627,3.61842,2436.5,2436.4,0.41062]
[1730734891924,0.41062,2436.4,2436.3,2.0143836]
[1730734892217,0.41062,2436.4,2436.3,3.89954437]
[1730734892527,3.61842,2436.5,2436.4,0.41062]
[1730734893021,3.61842,2436.5,2436.4,2.29586547]
[1730734893217,3.2078,2436.5,2436.4,3.27296547]
[1730734893523,3.2078,2436.5,2436.4,4.87670907]
[1730734893826,3.6184,2436.5,2436.4,3.27296547]
[1730734894026,3.6184,2436.5,2436.4,4.87670907]
[1730734894217,3.6184,2436.5,2436.4,3.98338907]
[1730734894420,3.6184,2436.5,2436.4,2.37964547]
[1730734895424,3.6184,2436.5,2436.4,2.37962951]
[1730734895624,3.6184,2436.5,2436.3,1.6037436]
[1730734895827,0.41062,2436.4,2436.3,1.6037436]
[1730734896127,0.41062,2436.4,2436.3,3.89956426]
[1730734897323,0.41062,2436.5,2436.4,0.41061]
[1730734897530,0.41062,2436.5,2436.4,0.93114758]
[1730734897725,0.4106,2436.6,2436.5,0.41059]
[1730734898020,4.2342,2436.8,2436.4,1.6037436]
[1730734898021,3.2078,2436.8,2436.4,1.6037436]
[1730734898225,3.2078,2436.8,2436.7,0.41056]
[1730734898226,3.61837,2436.8,2436.7,0.41056]
[1730734898425,44.0078,2437.1,2436.5,3.1397636]
[1730734898623,0.41056,2436.8,2436.7,0.41055]
[1730734898822,0.41056,2436.8,2436.7,0.89545]
[1730734899226,3.2016606,2437.0,2436.7,0.52058122]
[1730734899422,3.2016606,2437.0,2436.6,2.02180792]
[1730734899423,4.2279906,2437.0,2436.6,2.02180792]
[1730734899615,0.41057,2436.7,2436.6,0.41059]
[1730734899819,0.41057,2436.7,2436.6,2.29598944]
[1730734900018,0.41057,2436.7,2436.6,3.90720736]
[1730734900224,0.41057,2436.7,2436.6,2.29598944]
[1730734901625,0.41057,2436.7,2436.6,0.52059742]
[1730734901822,0.41057,2436.7,2436.6,2.29636918]
[1730734902031,3.61836,2436.8,2436.7,0.41057]
[1730734902328,0.41057,2436.7,2436.6,0.41059]
[1730734902527,0.41059,2436.6,2436.5,2.51750792]
[1730734902729,0.41059,2436.6,2436.5,3.88277336]
[1730734902932,0.41059,2436.6,2436.5,7.98677336]
[1730734903227,0.41059,2436.6,2436.5,2.27155544]
[1730734903434,0.41059,2436.7,2436.6,0.41057]
[1730734903827,4.2279806,2437.0,2436.6,0.41057]
[1730734903828,3.2016606,2437.0,2436.6,0.52082358]
[1730734904029,0.41053,2437.0,2436.9,0.41052]
[1730734905438,44.41831,2437.1,2437.0,0.41052]
[1730734905930,44.0078,2437.1,2437.0,0.41052]
[1730734906333,44.4183,2437.1,2437.0,0.90162]
[1730734906529,44.0078,2437.1,2437.0,0.90162]
[1730734907234,44.4183,2437.1,2437.0,0.90162]
[1730734907435,44.0078,2437.1,2437.0,0.90162]
[1730734907640,44.4183,2437.1,2437.0,0.90162]
[1730734907936,44.0078,2437.1,2437.0,0.90162]
[1730734908138,44.0078,2437.1,2437.0,1.42240103]
[1730734909136,44.0078,2437.1,2437.0,0.90162]
[1730734909634,44.0078,2437.1,2437.0,1.42229806]
[1730734910035,44.0078,2437.1,2437.0,2.78738434]